bitfinex-derivatives/quotes_BTCF0:USTF0_20240907
["timestamp","ask_amount","ask_price","bid_price","bid_amount"]
[1725667722155,0.001,54074.0,54073.0,0.09249]
[1725667722557,0.001,54074.0,54073.0,0.1970249]
[1725667722750,0.001,54074.0,54073.0,0.14219]
[1725667723856,0.001,54074.0,54072.0,0.001]
[1725667724455,0.09850029,54076.0,54068.0,0.1473319]
[1725667724650,0.001,54074.0,54073.0,0.001]
[1725667725166,0.001,54074.0,54072.0,0.001]
[1725667726760,0.092487,54075.0,54068.0,0.0548349]
[1725667726959,0.001,54074.0,54073.0,0.001]
[1725667727368,0.092487,54075.0,54068.0,0.0548349]
[1725667727568,0.001,54074.0,54072.0,0.001]
[1725667728064,0.001,54074.0,54073.0,0.001]
[1725667728668,0.00601429,54076.0,54069.0,0.0548349]
[1725667728864,0.001,54074.0,54072.0,0.001]
[1725667730364,0.001,54074.0,54073.0,0.001]
[1725667730869,0.001,54074.0,54070.0,0.1473299]
[1725667731059,0.001,54074.0,54072.0,0.001]
[1725667731472,0.092483,54078.0,54071.0,0.0548349]
[1725667731787,0.092483,54078.0,54073.0,0.001]
[1725667731788,0.001,54074.0,54073.0,0.001]
[1725667733175,0.001,54074.0,54072.0,0.001]
[1725667733758,0.092483,54077.0,54071.0,0.0548349]
[1725667733970,0.001,54074.0,54073.0,0.001]
[1725667734467,0.001,54074.0,54072.0,0.001]
[1725667735176,0.001,54074.0,54073.0,0.001]
[1725667736565,0.092485,54076.0,54070.0,0.1473299]
[1725667736763,0.001,54074.0,54072.0,0.001]
[1725667737167,0.092485,54076.0,54070.0,0.1473299]
[1725667737361,0.001,54074.0,54073.0,0.001]
[1725667737872,0.001,54074.0,54072.0,0.001]
[1725667739772,0.09249,54073.0,54072.0,0.001]
[1725667739970,0.18659,54073.0,54072.0,0.001]
[1725667740165,0.18659,54073.0,54066.0,0.0548349]
[1725667740368,0.18559,54073.0,54066.0,0.0548349]
[1725667740684,0.0941,54073.0,54065.0,0.1473389]
[1725667740919,0.0941,54073.0,54072.0,0.001]
[1725667740920,0.18659,54073.0,54072.0,0.001]
[1725667741475,0.092492,54072.0,54066.0,0.001]
[1725667741873,0.092492,54072.0,54066.0,0.0558349]
[1725667742072,0.091492,54072.0,54066.0,0.0548349]
[1725667743171,0.091492,54072.0,54065.0,0.1473389]
[1725667744072,0.091492,54072.0,54067.0,0.0548349]
[1725667744649,0.095492,54072.0,54067.0,0.0548349]
[1725667744739,0.1015892,54072.0,54067.0,0.0548349]
[1725667745678,0.0975892,54072.0,54067.0,0.0548349]
[1725667745880,0.1015892,54072.0,54067.0,0.0558349]
[1725667746878,0.1015892,54072.0,54067.0,0.001]
[1725667747374,0.06785692,54071.0,54067.0,0.001]
[1725667747575,0.06785692,54070.0,54067.0,0.001]
[1725667747767,0.06785692,54069.0,54067.0,0.001]
[1725667747963,0.1015892,54072.0,54067.0,0.001]
[1725667748178,0.06806925,54071.0,54067.0,0.001]
[1725667748373,0.06806925,54070.0,54067.0,0.001]
[1725667748578,0.06806925,54069.0,54067.0,0.001]
[1725667748884,0.004,54069.0,54067.0,0.001]
[1725667749071,0.004,54069.0,54067.0,0.0558349]
[1725667749266,0.004,54069.0,54067.0,0.1483349]
[1725667749473,0.004,54070.0,54067.0,0.1483349]
[1725667749774,0.004,54070.0,54067.0,0.0935]
[1725667751175,0.0060972,54072.0,54067.0,0.0925]
[1725667751381,0.003,54069.0,54067.0,0.0935]
[1725667751774,0.09249,54073.0,54067.0,0.0935]
[1725667751775,0.003,54070.0,54067.0,0.0935]
[1725667752171,0.003,54070.0,54067.0,0.001]
[1725667752379,0.06909446,54069.0,54063.0,0.0548349]
[1725667752587,0.06909446,54069.0,54059.0,0.0957]
[1725667752588,0.16159346,54068.0,54067.0,0.00085149]
[1725667752881,0.21009346,54068.0,54067.0,0.00085149]
[1725667754078,0.21009346,54068.0,54055.0,0.092521]
[1725667754079,0.092509,54063.0,54055.0,0.1473559]
[1725667754281,0.233498,54068.0,54067.0,0.001]
[1725667754489,0.092512,54061.0,54055.0,0.0548349]
[1725667754878,0.091512,54061.0,54055.0,0.0548349]
[1725667755083,0.091512,54061.0,54054.0,0.0548349]
[1725667755885,0.093512,54061.0,54054.0,0.0548349]
[1725667756077,0.093512,54061.0,54053.0,0.1473589]
[1725667757687,0.092512,54061.0,54053.0,0.1473589]
[1725667757982,0.092519,54057.0,54053.0,0.0548349]
[1725667758187,0.092521,54056.0,54050.0,0.0548349]
[1725667758377,0.092515,54059.0,54051.0,0.092528]
[1725667758681,0.00929184,54058.0,54051.0,0.092528]
[1725667758874,0.0485,54068.0,54051.0,0.0548349]
[1725667759078,0.07035966,54067.0,54051.0,0.0548349]
[1725667759558,0.09251,54062.0,54054.0,0.092522]
[1725667760680,0.002,54059.0,54052.0,0.0475]
[1725667761079,0.092515,54059.0,54052.0,0.0475]
[1725667761676,0.095515,54059.0,54052.0,0.0475]
[1725667761887,0.003,54059.0,54052.0,0.1023349]
[1725667762088,0.092494,54071.0,54058.0,0.092516]
[1725667762281,0.00614679,54079.0,54067.0,0.0548349]
[1725667762481,0.0492,54084.0,54072.0,0.0548349]
[1725667762685,0.10172936,54088.0,54079.0,0.09248]
[1725667762983,0.00926436,54088.0,54076.0,0.0548349]
[1725667763171,0.092471,54085.0,54075.0,0.1473219]
[1725667763376,0.092471,54085.0,54076.0,0.092485]
[1725667764583,0.094471,54085.0,54076.0,0.093485]
[1725667765685,0.092471,54085.0,54076.0,0.093485]
[1725667767304,0.094471,54085.0,54076.0,0.093485]
[1725667767880,0.092492,54073.0,54069.0,0.0548349]
[1725667768091,0.091492,54073.0,54064.0,0.0548349]
[1725667768388,0.091492,54073.0,54062.0,0.092509]
[1725667768593,0.090492,54073.0,54062.0,0.092509]
[1725667768790,0.092492,54072.0,54062.0,0.092509]
[1725667768983,0.140092,54072.0,54062.0,0.092509]
[1725667770889,0.092494,54071.0,54062.0,0.093509]
[1725667771277,0.0516,54072.0,54064.0,0.092504]
[1725667771681,0.0516,54072.0,54065.0,0.092503]
[1725667772992,0.004,54072.0,54069.0,0.092496]
[1725667773287,0.004,54072.0,54064.0,0.0548349]
[1725667773491,0.004,54072.0,54069.0,0.092497]
[1725667774091,0.004,54072.0,54069.0,0.093497]
[1725667774694,0.004,54072.0,54069.0,0.001]
[1725667774890,0.092495,54070.0,54069.0,0.001]
[1725667775395,1.247335,54070.0,54069.0,0.001]
[1725667775697,0.092495,54070.0,54069.0,0.001]
[1725667776089,0.0925,54068.0,54058.0,0.092514]
[1725667776793,0.0925,54068.0,54059.0,0.092514]
[1725667776982,0.092504,54065.0,54055.0,0.09252]
[1725667777486,0.091504,54065.0,54055.0,0.09252]
[1725667778087,0.091504,54065.0,54059.0,0.001]
[1725667778494,0.091504,54065.0,54055.0,0.09252]
[1725667778687,0.095504,54065.0,54055.0,0.09352]
[1725667779188,0.095504,54065.0,54056.0,0.092519]
[1725667779995,0.092506,54064.0,54056.0,0.092519]
[1725667780193,0.00931999,54063.0,54056.0,0.092519]
[1725667780597,0.00931999,54063.0,54059.0,0.001]
[1725667781798,0.00931999,54063.0,54057.0,0.092516]
[1725667782589,0.01631999,54063.0,54059.0,0.001]
[1725667784091,0.01531999,54063.0,54057.0,0.093516]
[1725667784693,0.01531999,54063.0,54059.0,0.001]
[1725667785391,0.00931999,54063.0,54057.0,0.092516]
[1725667785592,0.006,54063.0,54057.0,0.093516]
[1725667785792,0.00904851,54062.0,54057.0,0.093516]
[1725667787200,0.00904851,54062.0,54059.0,0.001]
[1725667787686,0.00904851,54062.0,54057.0,0.092516]
[1725667787894,0.006,54062.0,54057.0,0.001]
[1725667788100,0.01517347,54062.0,54057.0,0.001]
[1725667788492,0.01517347,54062.0,54059.0,0.001]
[1725667789994,0.0488,54061.0,54059.0,0.001]
[1725667790188,0.0488,54061.0,54057.0,0.001]
[1725667790596,0.0488,54061.0,54056.0,0.092519]
[1725667790904,0.0488,54061.0,54059.0,0.001]
[1725667791297,0.0548,54061.0,54057.0,0.001]
[1725667791704,0.0548,54061.0,54057.0,0.093517]
[1725667792006,0.0548,54061.0,54058.0,0.092515]
[1725667792007,0.006,54061.0,54058.0,0.092515]
[1725667792700,0.006,54061.0,54059.0,0.01479]
[1725667794003,0.00917347,54062.0,54059.0,0.01479]
[1725667794198,0.006,54061.0,54059.0,0.01579]
[1725667795194,0.01546969,54062.0,54060.0,0.092512]
[1725667795393,0.01546969,54062.0,54059.0,0.01579]
[1725667795394,0.006,54062.0,54059.0,0.01579]
[1725667796001,0.01512997,54062.0,54059.0,0.01579]
[1725667796197,0.006,54062.0,54059.0,0.01579]
[1725667796699,0.01523418,54062.0,54059.0,0.01579]
[1725667796895,0.006,54061.0,54059.0,0.01579]
[1725667797602,0.01534341,54062.0,54059.0,0.01579]
[1725667797805,0.006,54062.0,54059.0,0.01579]
[1725667798196,0.006,54061.0,54059.0,0.01579]
[1725667799794,0.00946374,54062.0,54059.0,0.01479]
[1725667799997,0.006,54062.0,54059.0,0.01579]
[1725667800202,0.01541561,54062.0,54059.0,0.01579]
[1725667800408,0.006,54062.0,54059.0,0.01579]
[1725667800591,0.006,54061.0,54059.0,0.01579]
[1725667800794,0.006,54061.0,54059.0,0.108304]
[1725667801200,0.10166613,54064.0,54059.0,0.107304]
[1725667801489,0.006,54062.0,54059.0,0.108304]
[1725667801694,0.006,54062.0,54059.0,0.01579]
[1725667801890,0.09851,54062.0,54059.0,0.001]
[1725667802097,0.092512,54060.0,54059.0,0.001]
[1725667802903,0.092516,54058.0,54057.0,0.01479]
[1725667803206,0.091516,54058.0,54057.0,0.01479]
[1725667803907,0.090516,54058.0,54052.0,0.0548349]
[1725667804100,0.1423,54059.0,54054.0,0.0548349]
[1725667804408,0.091523,54055.0,54050.0,0.0548349]
[1725667804600,0.091523,54055.0,54048.0,0.0548349]
[1725667805302,0.091523,54055.0,54049.0,0.0696349]
[1725667805507,0.091523,54055.0,54049.0,0.0148]
[1725667805804,0.091523,54055.0,54050.0,0.02387]
[1725667806210,0.091523,54055.0,54051.0,0.00491]
[1725667807308,0.096523,54055.0,54051.0,0.00491]
[1725667807899,0.099523,54055.0,54051.0,0.00491]
[1725667808099,0.10545868,54055.0,54051.0,0.00491]
[1725667808696,0.10545868,54055.0,54051.0,0.01971]
[1725667809502,0.11145868,54055.0,54051.0,0.02071]
[1725667810107,0.01993568,54055.0,54054.0,0.092523]
[1725667810299,0.014,54055.0,54054.0,0.092523]
[1725667811100,0.00618454,54060.0,54054.0,0.092523]
[1725667811410,0.014,54055.0,54054.0,0.001]
[1725667812205,0.106521,54055.0,54054.0,0.001]
[1725667812402,0.17342618,54055.0,54054.0,0.001]
[1725667812608,0.11579256,54055.0,54054.0,0.001]
[1725667812808,0.10179256,54055.0,54054.0,0.001]
[1725667813914,0.16169256,54055.0,54054.0,0.001]
[1725667815510,0.19689256,54055.0,54051.0,0.01971]
[1725667815706,0.21089256,54055.0,54054.0,0.001]
[1725667815912,0.02327156,54055.0,54054.0,0.001]
[1725667816716,0.02327156,54055.0,54051.0,0.02071]
[1725667817013,0.014,54055.0,54051.0,0.02071]
[1725667817202,0.014,54055.0,54054.0,0.001]
[1725667817407,0.02342039,54055.0,54054.0,0.001]
[1725667818920,0.02342039,54055.0,54051.0,0.0158]
[1725667819604,0.00942039,54055.0,54051.0,0.0148]
[1725667819804,0.014,54055.0,54054.0,0.001]
[1725667820113,0.02305931,54055.0,54054.0,0.001]
[1725667820807,1.47830171,54055.0,54051.0,0.0158]
[1725667821117,0.185052,54052.0,54051.0,0.001]
[1725667821304,0.2521734,54052.0,54051.0,0.001]
[1725667821617,1.4072134,54052.0,54051.0,0.001]
[1725667823012,0.091528,54051.0,54050.0,0.00907]
[1725667823318,0.7136894,54051.0,54050.0,0.00907]
[1725667823820,1.3126894,54051.0,54050.0,0.00907]
[1725667824312,1.3266894,54051.0,54050.0,0.01007]
[1725667826312,1.4192174,54051.0,54050.0,0.01007]
[1725667827319,1.4052174,54051.0,54050.0,0.00907]
[1725667827521,1.4192174,54051.0,54050.0,0.01007]
[1725667828017,1.4604885,54051.0,54050.0,0.01007]
[1725667828921,0.8641774,54051.0,54050.0,0.01007]
[1725667829222,0.2641774,54051.0,54050.0,0.01007]
[1725667830612,0.1716494,54051.0,54050.0,0.01007]
[1725667832026,0.2641774,54051.0,54050.0,0.01007]
[1725667832320,0.09254,54044.0,54043.0,0.01971]
[1725667832522,0.09254,54044.0,54035.0,0.140055]
[1725667832523,0.092542,54043.0,54035.0,0.140055]
[1725667832714,0.092542,54043.0,54038.0,0.0148]
[1725667834122,0.106542,54043.0,54038.0,0.0148]
[1725667835726,0.106542,54043.0,54038.0,0.03451]
[1725667837221,0.11245542,54043.0,54038.0,0.03451]
[1725667839123,0.092548,54039.0,54038.0,0.03451]
[1725667839318,0.092548,54039.0,54038.0,0.01971]
[1725667839525,0.092548,54039.0,54031.0,0.0475]
[1725667839526,0.1387,54042.0,54031.0,0.0475]
[1725667839717,0.1387,54042.0,54025.0,0.092572]
[1725667839922,0.1387,54042.0,54025.0,0.140272]
[1725667840124,0.092555,54036.0,54026.0,0.0148]
[1725667840423,0.092556,54035.0,54026.0,0.0148]
[1725667840827,0.092557,54034.0,54026.0,0.0148]
[1725667841028,0.092557,54034.0,54027.0,0.0148]
[1725667841324,0.001,54036.0,54027.0,0.0148]
[1725667841525,0.092559,54033.0,54027.0,0.0148]
[1725667842832,0.001,54036.0,54027.0,0.0148]
[1725667843032,0.092567,54028.0,54027.0,0.0148]
[1725667843221,0.092569,54027.0,54026.0,0.0148]
[1725667843419,0.10199946,54027.0,54026.0,0.0148]
[1725667843622,0.092574,54025.0,54015.0,0.1412]
[1725667843927,0.092575,54024.0,54015.0,0.1412]
[1725667844132,0.092578,54022.0,54015.0,0.1412]
[1725667844322,0.092578,54022.0,54010.0,0.092597]
[1725667844323,0.092588,54016.0,54008.0,0.38107862]
[1725667844522,0.092594,54013.0,54007.0,0.0921]
[1725667844726,0.00916094,54016.0,54007.0,0.0921]
[1725667845029,0.092602,54008.0,54007.0,0.0466]
[1725667845233,0.092602,54008.0,53999.0,0.0455]
[1725667845425,0.092595,54012.0,53999.0,0.0921]
[1725667845621,0.092597,54011.0,53999.0,0.0921]
[1725667847926,0.092597,54011.0,54000.0,0.097524]
[1725667848428,0.0457,54016.0,54000.0,0.00491]
[1725667849032,0.092591,54015.0,54000.0,0.00491]
[1725667849736,0.092605,54006.0,54000.0,0.00491]
[1725667850123,0.092607,54005.0,54001.0,0.01481]
[1725667851432,0.001,54006.0,54001.0,0.01481]
[1725667852624,0.002,54005.0,54001.0,0.01481]
[1725667853437,0.00811099,54006.0,54001.0,0.01481]
[1725667853634,0.002,54006.0,54001.0,0.01481]
[1725667853834,0.002,54005.0,54001.0,0.01481]
[1725667854237,0.002,54005.0,54001.0,0.02962]
[1725667856339,0.092608,54004.0,54001.0,0.02962]
[1725667857541,0.099608,54004.0,53999.0,0.0466]
[1725667858745,0.007,54004.0,53999.0,0.0466]
[1725667859135,0.00612129,54008.0,54001.0,0.092613]
[1725667859340,0.005,54004.0,54001.0,0.092613]
[1725667860245,0.0457,54016.0,54001.0,0.092613]
[1725667860443,0.007,54008.0,54002.0,0.01481]
[1725667860745,0.007,54008.0,54003.0,0.00491]
[1725667861051,0.007,54004.0,54003.0,0.00491]
[1725667861443,0.007,54004.0,54003.0,0.09752]
[1725667861647,0.007,54004.0,54003.0,0.00491]
[1725667862551,0.10675305,54008.0,54003.0,0.00491]
[1725667862955,0.01415105,54008.0,54003.0,0.00491]
[1725667863146,0.01415105,54008.0,54003.0,0.09752]
[1725667863147,0.009,54004.0,54003.0,0.09752]
[1725667863549,0.3265,54017.0,54003.0,1.16043]
[1725667863748,0.3265,54017.0,54016.0,0.092588]
[1725667864049,0.3265,54017.0,54016.0,0.107398]
[1725667864442,0.00252001,54025.0,54020.0,0.09258]
[1725667864648,0.10192644,54026.0,54021.0,0.0914]
[1725667865439,0.10794357,54026.0,54021.0,0.0914]
[1725667865644,0.092572,54025.0,54021.0,0.0914]
[1725667865846,0.092574,54024.0,54021.0,0.0914]
[1725667866042,0.00945904,54025.0,54021.0,0.0924]
[1725667866248,0.101572,54026.0,54021.0,0.0924]
[1725667866653,0.102572,54026.0,54021.0,0.0924]
[1725667866843,0.00907913,54025.0,54021.0,0.0924]
[1725667867239,0.01807913,54025.0,54021.0,0.184979]
[1725667867455,0.009,54025.0,54021.0,0.184979]
[1725667867641,0.01808191,54025.0,54021.0,0.184979]
[1725667867848,0.009,54025.0,54021.0,0.184979]
[1725667868146,0.009,54025.0,54024.0,0.092574]
[1725667869551,0.01,54026.0,54024.0,0.092574]
[1725667869954,0.09858216,54031.0,54024.0,0.092574]
[1725667870153,0.014,54025.0,54024.0,0.093574]
[1725667871646,0.09858216,54031.0,54024.0,0.092574]
[1725667871851,0.013,54026.0,54024.0,0.093574]
[1725667872355,0.013,54025.0,54024.0,0.093574]
[1725667872849,0.09858216,54031.0,54026.0,0.09257]
[1725667873743,0.092556,54035.0,54024.0,0.001]
[1725667873945,0.092558,54034.0,54028.0,0.092567]
[1725667874148,0.092558,54034.0,54024.0,0.001]
[1725667874149,0.092558,54034.0,54029.0,0.092565]
[1725667875454,0.09253,54051.0,54029.0,0.092565]
[1725667875455,0.00905931,54055.0,54030.0,0.55524]
[1725667875661,0.092526,54052.0,54026.0,0.0548349]
[1725667875851,0.092535,54047.0,54041.0,0.092544]
[1725667876052,0.092536,54046.0,54042.0,0.0148]
[1725667876254,0.0993,54053.0,54042.0,0.0148]
[1725667876753,0.191825,54053.0,54043.0,0.0148]
[1725667876952,0.092538,54046.0,54043.0,0.0148]
[1725667877354,0.014,54047.0,54043.0,0.0148]
[1725667878147,0.106535,54047.0,54043.0,0.0148]
[1725667878346,0.092535,54047.0,54043.0,0.0148]
[1725667879156,0.106535,54047.0,54043.0,0.0158]
[1725667879658,0.092535,54047.0,54043.0,0.0148]
[1725667879860,0.106535,54047.0,54043.0,0.0158]
[1725667884258,0.092537,54046.0,54043.0,0.0158]
[1725667884452,0.092538,54045.0,54043.0,0.0158]
[1725667884652,0.09254,54044.0,54043.0,0.0158]
[1725667884863,0.09254,54044.0,54042.0,0.0148]
[1725667884864,0.55512,54044.0,54030.0,0.092564]
[1725667885055,0.0478,54043.0,54030.0,0.092564]
[1725667885256,0.0466,54042.0,54030.0,0.092564]
[1725667885664,0.0476,54041.0,54030.0,0.092564]
[1725667885963,0.0466,54041.0,54030.0,0.092564]
[1725667886265,0.09255,54038.0,54030.0,0.092564]
[1725667886560,0.09255,54038.0,54031.0,0.0197]
[1725667888661,0.092552,54037.0,54031.0,0.0207]
[1725667889155,0.092552,54037.0,54031.0,0.0197]
[1725667889459,0.092552,54037.0,54031.0,0.0207]
[1725667891062,0.106552,54037.0,54031.0,0.0207]
[1725667892868,0.092555,54036.0,54031.0,0.0207]
[1725667894761,0.092555,54036.0,54032.0,0.0148]
[1725667894965,0.106555,54036.0,54032.0,0.0148]
[1725667895165,0.014,54036.0,54033.0,0.0148]
[1725667895364,0.014,54036.0,54033.0,0.1126]
[1725667895968,0.092548,54040.0,54033.0,0.1126]
[1725667896169,0.014,54036.0,54033.0,0.1126]
[1725667896765,0.014,54036.0,54033.0,0.205159]
[1725667897274,0.014,54036.0,54033.0,0.0148]
[1725667897583,0.14782768,54064.0,54034.0,0.5552]
[1725667897761,0.3265,54056.0,54051.0,0.092527]
[1725667897962,0.53964001,54059.0,54051.0,0.05504857]
[1725667897963,0.00244001,54059.0,54051.0,0.05504857]
[1725667898165,0.0473,54066.0,54053.0,0.05504857]
[1725667898468,0.0473,54066.0,54048.0,0.1443]
[1725667898469,0.0473,54066.0,54056.0,0.092519]
[1725667898662,0.0466,54072.0,54059.0,0.092514]
[1725667898663,0.00914343,54065.0,54059.0,0.092514]
[1725667898869,0.0466,54072.0,54059.0,0.092514]
[1725667899375,0.05587585,54072.0,54060.0,0.05504857]
[1725667899561,0.014,54066.0,54059.0,0.092514]
[1725667900071,0.014,54066.0,54058.0,0.05504857]
[1725667900271,0.014,54066.0,54059.0,0.60996857]
[1725667900575,0.014,54066.0,54064.0,0.14727193]
[1725667900773,0.014,54066.0,54065.0,0.0477]
[1725667900979,0.014,54066.0,54065.0,0.60258]
[1725667901271,0.3265,54085.0,54065.0,1.296476]
[1725667901576,0.5372,54091.0,54073.0,0.05475577]
[1725667901577,0.00244001,54083.0,54073.0,0.05475577]
[1725667901767,0.00252001,54091.0,54079.0,0.05475577]
[1725667901966,0.00252001,54091.0,54074.0,0.55476]
[1725667901967,0.092457,54093.0,54083.0,0.092473]
[1725667902162,0.00948606,54094.0,54080.0,0.0477]
[1725667902371,0.045,54098.0,54080.0,0.0477]
[1725667902864,0.045,54098.0,54073.0,0.07286986]
[1725667902865,0.092465,54088.0,54074.0,0.05475577]
[1725667903065,0.092465,54088.0,54074.0,0.092487]
[1725667903266,0.092465,54088.0,54073.0,0.00597508]
[1725667903474,0.092465,54088.0,54069.0,0.10245577]
[1725667903875,0.092469,54086.0,54069.0,0.19495177]
[1725667904068,0.092469,54086.0,54079.0,0.001]
[1725667904779,0.0457,54085.0,54079.0,0.001]
[1725667904970,0.0457,54085.0,54070.0,0.092495]
[1725667905475,0.092472,54084.0,54069.0,0.0487]
[1725667905671,0.092472,54084.0,54079.0,0.014]
[1725667905881,0.0457,54083.0,54079.0,0.014]
[1725667906567,0.60042,54083.0,54079.0,0.014]
[1725667906764,0.092477,54081.0,54079.0,0.014]
[1725667907171,0.092477,54081.0,54065.0,0.36558055]
[1725667907377,0.092477,54081.0,54070.0,0.014]
[1725667907872,0.092477,54081.0,54065.0,0.36558055]
[1725667908675,0.092477,54081.0,54070.0,0.01]
[1725667909677,0.0457,54085.0,54070.0,0.01]
[1725667910282,0.0457,54085.0,54065.0,0.37858055]
[1725667910682,0.3265,54087.0,54065.0,0.43333632]
[1725667910880,0.3265,54087.0,54070.0,0.003]
[1725667911184,0.3265,54087.0,54078.0,0.092481]
[1725667911382,0.00605512,54092.0,54079.0,0.0451]
[1725667911585,0.0469,54094.0,54079.0,0.0451]
[1725667912285,0.0469,54094.0,54082.0,0.092474]
[1725667912479,0.0469,54094.0,54079.0,0.0451]
[1725667913380,0.3265,54096.0,54084.0,0.092471]
[1725667915383,0.3265,54096.0,54084.0,0.100471]
[1725667916981,0.3265,54096.0,54084.0,0.098471]
[1725667917689,0.3265,54096.0,54084.0,0.094471]
[1725667917878,0.3265,54096.0,54085.0,0.092469]
[1725667918077,0.0488,54097.0,54085.0,0.092469]
[1725667919484,0.0488,54097.0,54086.0,0.092468]
[1725667920685,0.0488,54097.0,54084.0,0.009]
[1725667920686,0.0488,54097.0,54087.0,0.092466]
[1725667921576,0.0488,54097.0,54088.0,0.01479]
[1725667923087,0.0488,54097.0,54086.0,0.002]
[1725667923291,0.092451,54096.0,54087.0,0.001]
[1725667923680,0.0937,54095.0,54087.0,0.001]
[1725667923994,0.0937,54095.0,54079.0,0.13758]
[1725667924185,0.0937,54095.0,54079.0,0.09248]
[1725667924585,0.0937,54095.0,54087.0,0.001]
[1725667925781,0.092458,54092.0,54087.0,0.001]
[1725667926384,0.0937,54095.0,54087.0,0.001]
[1725667926596,0.55464,54094.0,54080.0,0.05475577]
[1725667926784,0.092471,54085.0,54079.0,0.01]
[1725667926987,0.092478,54080.0,54079.0,0.01]
[1725667927295,0.0482,54084.0,54072.0,0.05475577]
[1725667927595,0.0477,54079.0,54071.0,0.07444577]
[1725667927896,0.0498,54078.0,54071.0,0.07444577]
[1725667928193,0.0418,54078.0,54071.0,0.05475577]
[1725667928378,0.0418,54078.0,54070.0,0.06954577]
[1725667928893,0.0418,54078.0,54072.0,0.014]
[1725667929295,0.092489,54074.0,54072.0,0.014]
[1725667930088,0.0418,54078.0,54072.0,0.014]
[1725667930289,0.0418,54078.0,54071.0,0.012]
[1725667930501,0.092484,54077.0,54071.0,0.012]
[1725667930697,0.092487,54075.0,54071.0,0.012]
[1725667930895,0.092489,54074.0,54072.0,0.004]
[1725667931094,0.09249,54073.0,54072.0,0.004]
[1725667931690,0.09249,54073.0,54065.0,0.03448]
[1725667931691,0.092502,54066.0,54065.0,0.01479]
[1725667931893,0.10175386,54066.0,54065.0,0.01479]
[1725667932095,0.69875386,54066.0,54065.0,0.01479]
[1725667932890,0.092508,54063.0,54055.0,0.01479]
[1725667934396,0.00925186,54066.0,54055.0,0.01479]
[1725667934691,0.42399,54073.0,54055.0,0.01479]
[1725667934692,0.092512,54061.0,54055.0,0.01479]
[1725667934893,0.10178665,54061.0,54055.0,0.02079]
[1725667937092,0.00927465,54061.0,54055.0,0.01479]
[1725667937404,0.09251,54062.0,54055.0,0.01679]
[1725667937894,0.10188834,54062.0,54055.0,0.001]
[1725667938294,0.00937834,54062.0,54046.0,0.092535]
[1725667938491,0.092518,54057.0,54041.0,0.10075577]
[1725667938694,0.092521,54055.0,54045.0,0.092538]
[1725667938893,0.20682413,54061.0,54041.0,0.046]
[1725667939196,0.29933113,54064.0,54042.0,0.092543]
[1725667939392,0.092507,54064.0,54042.0,0.092543]
[1725667939601,0.20819014,54063.0,54043.0,0.0345]
[1725667939894,0.092523,54054.0,54043.0,0.0345]
[1725667940299,0.09253,54050.0,54043.0,0.0345]
[1725667940499,0.0474,54049.0,54043.0,0.0345]
[1725667940798,0.09254,54044.0,54043.0,0.0345]
[1725667941093,0.09254,54044.0,54043.0,0.0188]
[1725667941298,0.09254,54044.0,54043.0,0.004]
[1725667942801,0.0474,54049.0,54036.0,0.0345]
[1725667942802,0.092545,54042.0,54036.0,0.0345]
[1725667943103,0.0474,54049.0,54036.0,0.0345]
[1725667943302,0.05346612,54049.0,54036.0,0.0345]
[1725667943497,0.007,54044.0,54043.0,0.001]
[1725667944092,0.092544,54042.0,54036.0,0.0355]
[1725667944498,0.092545,54041.0,54036.0,0.0355]
[1725667944697,0.091545,54041.0,54030.0,0.092563]
[1725667944900,0.007,54044.0,54029.0,0.0452]
[1725667945095,0.092543,54043.0,54020.0,0.09258]
[1725667945404,0.092543,54043.0,54008.0,0.0917878]
[1725667945405,0.092554,54037.0,54022.0,0.140377]
[1725667945598,0.0458,54036.0,54022.0,0.140377]
[1725667945790,0.0458,54036.0,54022.0,0.0478]
[1725667945791,0.05529154,54036.0,54022.0,0.0478]
[1725667945994,0.092562,54031.0,54022.0,0.0478]
[1725667946203,0.092562,54031.0,54023.0,0.0148]
[1725667946507,0.05529154,54036.0,54023.0,0.0493]
[1725667946711,0.092568,54028.0,54023.0,0.0493]
[1725667946897,0.092568,54028.0,54025.0,0.01]
[1725667947994,0.092561,54032.0,54025.0,0.01]
[1725667948201,0.0451,54035.0,54025.0,0.01]
[1725667948404,0.092558,54034.0,54025.0,0.01]
[1725667949004,0.092558,54034.0,54023.0,0.0493]
[1725667949198,0.092558,54034.0,54023.0,0.0583]
[1725667949199,0.001,54031.0,54023.0,0.0583]
[1725667949500,0.092558,54034.0,54023.0,0.0493]
[1725667949697,0.092558,54034.0,54025.0,0.003]
[1725667949898,0.05102643,54035.0,54025.0,0.003]
[1725667950098,0.20714442,54033.0,54025.0,0.003]
[1725667950303,0.21155443,54034.0,54025.0,0.003]
[1725667950492,0.09256,54032.0,54025.0,0.003]
[1725667950694,0.09256,54032.0,54019.0,0.092582]
[1725667950897,0.09256,54032.0,54023.0,0.006]
[1725667951101,0.001,54034.0,54023.0,0.006]
[1725667951503,0.20245268,54033.0,54023.0,0.006]
[1725667951904,0.092564,54030.0,54023.0,0.006]
[1725667952507,0.80669103,54029.0,54016.0,0.03452]
[1725667952700,0.25141103,54029.0,54016.0,0.03452]
[1725667952906,0.25141103,54029.0,54016.0,0.01481]
[1725667953504,0.092576,54023.0,54013.0,0.0462]
[1725667953709,0.0458,54022.0,54013.0,0.0462]